fUSD/lending_fUSD_20250117
["ID","MTS","AMOUNT","RATE_DAILY","PERIOD"]
[349323580,1737123031771,-167.33989455,0.000231,2]
[349323581,1737123031781,-348.064152,0.000231,2]
[349323582,1737123031791,-2000.0,0.00023109,2]
[349323583,1737123031800,-2000.0,0.00023162,2]
[349323584,1737123031810,-200.0,0.00023162,2]
[349323585,1737123031819,-2000.0,0.00023162,2]
[349323586,1737123031829,-200.0,0.00023162,2]
[349323587,1737123031839,-4775.22143118,0.00023162,2]
[349323588,1737123031848,-4471.66425171,0.00023164,2]
[349323589,1737123031858,-3670.02653296,0.00023164,2]
[349323590,1737123031868,-661.07496083,0.00023166,2]
[349323591,1737123031878,-5339.5367735,0.00023168,2]
[349323592,1737123031888,-150.0,0.00023172,2]
[349323593,1737123031898,-500.0,0.00023173,2]
[349323594,1737123031907,-353.67063894,0.00023173,2]
[349323595,1737123031917,-500.0,0.00023173,2]
[349323596,1737123031927,-500.0,0.00023173,2]
[349323597,1737123031937,-150.93159663,0.00023173,2]
[349323598,1737123031947,-151.93245353,0.00023173,2]
[349323599,1737123031956,-151.94175889,0.00023173,2]
[349323600,1737123031966,-159.94565962,0.00023173,2]
[349323601,1737123031975,-500.0,0.00023173,2]
[349323602,1737123031985,-5339.5367735,0.00023177,2]
[349323603,1737123031995,-3670.02653296,0.00023177,2]
[349323604,1737123032004,-11010.07959888,0.00023177,2]
[349323605,1737123032014,-6169.0,0.00023178,2]
[349323606,1737123032024,-24084.0,0.00023178,2]
[349323607,1737123032034,-9794.0,0.00023178,2]
[349323608,1737123032044,-4471.66425171,0.00023179,2]
[349323609,1737123032054,-4471.66425171,0.00023182,2]
[349323610,1737123032064,-11010.07959888,0.00023184,2]
[349323611,1737123032073,-5339.5367735,0.00023186,2]
[349323612,1737123032083,-3670.02653296,0.00023187,2]
[349323613,1737123032093,-279.39783796,0.00023189,2]
[349323615,1737123032103,-898.22348438,0.00023189,2]
[349323617,1737123032112,-215.06590406,0.0002319,2]
[349323619,1737123032123,-215.06590406,0.0002319,2]
[349323621,1737123032134,-898.22348438,0.00023191,2]
[349323623,1737123032143,-661.07496083,0.00023192,2]
[349323624,1737123032152,-495.80622062,0.00023193,2]
[349323625,1737123032162,-200.0,0.00023193,2]
[349323626,1737123032171,-7340.05306592,0.00023196,2]
[349323627,1737123032181,-3670.02653296,0.00023199,2]
[349323628,1737123032190,-1422.56505477,0.00023199,10]
[349323629,1737123032199,-563.27,0.00023199,2]
[349323630,1737123032208,-672.44042542,0.00023199,2]
[349323631,1737123032218,-260.90530355,0.000232,2]
[349323632,1737123032227,-160.68776878,0.000232,2]
[349323633,1737123032237,-7340.05306592,0.000232,2]
[349323634,1737123032248,-178986.40791572,0.000232,2]
[349323635,1737123032261,-311.75028326,0.000232,2]
[349323636,1737123032273,-2052.6408,0.000232,2]
[349323637,1737123032315,-206670.4617004,0.000232,2]
[349323638,1737123032327,-28035.01210038,0.000232,2]
[349323639,1737123032338,-4344.40990097,0.000232,2]
[349323640,1737123032350,-1014.14013679,0.000232,2]
[349323641,1737123032569,-1310.89751722,0.000232,2]
[349323642,1737123032583,-98917.63700932,0.000232,2]
[349323643,1737123032602,-402.77583486,0.000232,2]
[349323644,1737123032613,-4840.5,0.000232,2]
[349323645,1737123032674,-7082.59999996,0.000232,2]
[349323648,1737123037534,-38045.73602392,0.000232,16]
[349323649,1737123037545,-43349.70282801,0.000232,16]
[349323650,1737123037565,-837.40192961,0.000232,16]
[349323651,1737123037576,-865.94,0.000232,16]
[349323652,1737123037587,-41416.17623125,0.000232,16]
[349323653,1737123037747,-51.45116982,0.000232,16]
[349323656,1737123037968,-8707892.54221944,0.000232,16]
[349323657,1737123037977,-21627.1829641,0.000232,2]
[349323659,1737123037987,-8899480.75778096,0.000232,2]
[349323678,1737123039646,-938.08460714,0.000232,2]
[349323696,1737123039831,-2455.59776333,0.000232,2]
[349323697,1737123039843,-1453.7,0.000232,2]
[349323698,1737123039854,-2295.0,0.000232,2]
[349323699,1737123039936,-238832.47128904,0.000232,2]
[349323700,1737123039950,-486971.1418688,0.000232,2]
[349323701,1737123039962,-813746.41856161,0.000232,2]
[349323702,1737123039973,-2296.11117755,0.000232,2]
[349323703,1737123039990,-6153.66048,0.000232,2]
[349323704,1737123040013,-68932.8132189,0.000232,2]
[349323719,1737123042615,-51220.0,0.000232,2]
[349323720,1737123042627,-5268.27174839,0.000232,2]
[349323721,1737123042638,-3718.06,0.000232,2]
[349323722,1737123042798,-676928.21582926,0.000232,2]
[349323723,1737123042810,-458.44251436,0.000232,2]
[349323727,1737123043833,-33689.66410215,0.000232,2]
[349323730,1737123045512,-6143.50164698,0.000232,2]
[349323731,1737123045724,-268.54188002,0.000232,2]
[349323734,1737123058570,206.59,0.00010137,2]
[349323735,1737123908449,30435.80389239,0.00012,2]
[349323736,1737123908482,106509.65323775,0.00012,2]
[349323737,1737123908510,31897.5795885,0.00012,2]
[349323738,1737123919945,6578.05705058,9e-05,2]
[349323739,1737123936405,260.78,8e-05,2]
[349323740,1737123955179,15862.52743867,6.94e-05,2]
[349323741,1737123962693,2085.76993624,0.0001,2]
[349323742,1737123966829,1322.99665724,8e-05,2]
[349323743,1737124013798,155.01,0.00010137,2]
[349323745,1737124029126,-206.59,0.00016813,2]
[349323746,1737124029689,-155.01,0.00017599,2]
[349323747,1737124029735,-107.83629779,0.000199,2]
[349323748,1737124035106,-631.70367749,0.000199,2]
[349323749,1737124035132,-739.53997528,0.00019919,2]
[349323750,1737124035154,-217.13134446,0.0002,2]
[349323751,1737124081492,941837.27932877,0.0001,2]
[349323752,1737124081518,155751.60148808,0.0001,2]
[349323753,1737124115796,167858.73670275,0.00011,2]
[349323754,1737124126064,83827.22360794,8e-05,2]
[349323759,1737124172094,-1270.41140293,0.0002,2]
[349323760,1737124172116,-137.08009308,0.0002,10]
[349323770,1737124231819,-1063.5796612,0.0002,10]
[349323771,1737124231829,-2380.32176599,0.0002,4]
[349323772,1737124231839,-1261.77,0.00020244,2]
[349323773,1737124231848,-250.0,0.00021259,2]
[349323774,1737124231858,-5107.49,0.00021362,2]
[349323775,1737124231868,-300.0,0.00021385,2]
[349323776,1737124231877,-300.0,0.00021494,2]
[349323777,1737124231886,-8151.78464549,0.00021495,2]
[349323778,1737124231898,-55845.64535451,0.00021495,2]
[349323779,1737124232122,-500.0,0.00021534,2]
[349323780,1737124232156,-1500.0,0.00021554,2]
[349323781,1737124232165,-164.04,0.00021684,2]
[349323782,1737124232175,-200.0,0.00021704,2]
[349323784,1737124232184,-250.0,0.00021719,2]
[349323786,1737124232194,-200.0,0.00021805,2]
[349323787,1737124232204,-1810.12,0.00021887,2]
[349323790,1737124232213,-733.73,0.00021904,2]
[349323791,1737124232223,-6268.51,0.00021904,2]
[349323793,1737124232232,-250.0,0.00022027,2]
[349323795,1737124232241,-443.17,0.00022031,2]
[349323797,1737124232251,-646.45,0.00022125,2]
[349323799,1737124232260,-1516.4,0.0002221,2]
[349323800,1737124232269,-500.0,0.00022219,2]
[349323802,1737124232279,-161.88,0.00022247,2]
[349323803,1737124232288,-1000.0,0.00022249,2]
[349323805,1737124232303,-59093.0,0.00022286,2]
[349323807,1737124232312,-1132.12,0.00022325,2]
[349323809,1737124232322,-445.0,0.000225,3]
[349323811,1737124232331,-1000.0,0.000225,2]
[349323813,1737124232341,-1000.0,0.000225,2]
[349323815,1737124232350,-248.87454581,0.000225,2]
[349323817,1737124232362,-751.12545419,0.000225,2]
[349323819,1737124232372,-1261.77,0.00022508,2]
[349323821,1737124232381,-1810.12,0.00022697,2]
[349323823,1737124232390,-159.458,0.00022737,2]
[349323825,1737124232399,-2810.239,0.00022737,2]
[349323827,1737124232409,-6431.23260954,0.000228,2]
[349323831,1737124232427,-4746.27368672,0.000228,2]
[349323833,1737124232438,-193.61,0.00022826,2]
[349323836,1737124232447,-2110.0,0.0002286,2]
[349323839,1737124232456,-607.88815359,0.0002286,2]
[349323841,1737124232467,-13574.9931329,0.0002286,2]
[349323845,1737124232480,-5092.3002371,0.0002286,2]
[349323966,1737124237631,-50000.0,0.0002286,2]
[349323969,1737124237653,-22946.5798,0.0002286,2]
[349323970,1737124237744,-68362.1947581,0.0002286,2]
[349323971,1737124237754,-158.27562113,0.000229,2]
[349323972,1737124237763,-158.27562113,0.000229,2]
[349323973,1737124237773,-158.27562113,0.00022967,2]
[349323974,1737124237782,-538.93409062,0.00023016,2]
[349323975,1737124237792,-538.93409062,0.00023043,2]
[349323976,1737124237805,-495.47566911,0.00023043,2]
[349323977,1737124237814,-495.47566911,0.00023046,2]
[349323978,1737124237824,-309.6722932,0.00023053,2]
[349323979,1737124237834,-1979.81444483,0.00023054,2]
[349323980,1737124237844,-309.6722932,0.00023057,2]
[349323981,1737124237854,-538.93409062,0.00023081,2]
[349323982,1737124237864,-538.93409062,0.0002309,2]
[349323983,1737124237873,-1979.81444483,0.0002309,2]
[349323984,1737124237883,-500.0,0.00023099,2]
[349323985,1737124237892,-500.0,0.00023099,2]
[349323986,1737124237902,-500.0,0.00023099,2]
[349323987,1737124237911,-2447.06897,0.000231,2]
[349323988,1737124237920,-25312.69532905,0.000231,2]
[349323989,1737124237930,-158.27562113,0.000231,2]
[349323990,1737124237943,-538.93409062,0.00023103,2]
[349323991,1737124237952,-1979.81444483,0.00023108,2]
[349323992,1737124237962,-495.47566911,0.00023122,2]
[349323993,1737124237972,-1979.81444483,0.00023124,2]
[349323994,1737124237981,-495.47566911,0.0002315,2]
[349323995,1737124237991,-495.47566911,0.00023152,2]
[349323996,1737124238001,-1979.81444483,0.00023159,2]
[349323997,1737124238011,-1979.81444483,0.00023171,2]
[349323998,1737124238022,-538.93409062,0.00023171,2]
[349323999,1737124238033,-500.0,0.00023173,2]
[349324000,1737124238043,-160.73848294,0.00023173,2]
[349324002,1737124238055,-150.93137005,0.00023173,2]
[349324003,1737124238065,-500.81802442,0.00023173,2]
[349324004,1737124238075,-500.0,0.00023173,2]
[349324005,1737124238084,-309.6722932,0.00023177,2]
[349324006,1737124238094,-1979.81444483,0.00023178,2]
[349324007,1737124238104,-495.47566911,0.00023179,2]
[349324008,1737124238114,-11000.0,0.00023185,2]
[349324009,1737124238124,-150.7,0.0002319,2]
[349324010,1737124238134,-1979.81444483,0.0002319,2]
[349324011,1737124238143,-20113.06743501,0.0002319,3]
[349324013,1737124238154,-538.93409062,0.00023193,2]
[349324015,1737124238164,-188.35,0.00023197,2]
[349324016,1737124238174,-538.93409062,0.00023198,2]
[349324018,1737124238183,-560.63,0.00023199,2]
[349324020,1737124238193,-202.72747364,0.00023199,2]
[349324022,1737124238210,-297.27252636,0.00023199,2]
[349324023,1737124238220,-500.0,0.00023199,2]
[349324024,1737124238230,-500.0,0.00023199,2]
[349324025,1737124238240,-500.0,0.00023199,2]
[349324026,1737124238251,-500.0,0.00023199,2]
[349324027,1737124238261,-500.0,0.00023199,2]
[349324028,1737124238271,-500.0,0.00023199,2]
[349324029,1737124238281,-500.0,0.00023199,2]
[349324030,1737124238290,-500.0,0.00023199,2]
[349324031,1737124238304,-500.0,0.00023199,2]
[349324032,1737124238313,-500.0,0.00023199,2]
[349324033,1737124238323,-500.0,0.00023199,2]
[349324034,1737124238333,-500.0,0.00023199,2]
[349324035,1737124238342,-500.0,0.00023199,2]
[349324036,1737124238352,-500.0,0.00023199,2]
[349324037,1737124238361,-501.55883974,0.00023199,2]
[349324038,1737124238371,-500.0,0.00023199,2]
[349324039,1737124238380,-500.0,0.00023199,2]
[349324040,1737124238390,-500.0,0.00023199,2]
[349324041,1737124238399,-500.0,0.00023199,2]
[349324042,1737124238409,-500.0,0.00023199,2]
[349324043,1737124238418,-500.0,0.00023199,2]
[349324044,1737124238427,-500.0,0.00023199,2]
[349324045,1737124238437,-500.0,0.00023199,2]
[349324046,1737124238447,-500.0,0.00023199,2]
[349324047,1737124238456,-500.0,0.00023199,2]
[349324048,1737124238466,-500.0,0.00023199,2]
[349324049,1737124238480,-500.0,0.00023199,2]
[349324050,1737124238490,-500.0,0.00023199,2]
[349324051,1737124238500,-500.0,0.00023199,2]
[349324052,1737124238511,-500.0,0.00023199,2]
[349324053,1737124238521,-500.0,0.00023199,2]
[349324054,1737124238531,-502.30652545,0.00023199,2]
[349324055,1737124238540,-500.0,0.00023199,2]
[349324056,1737124238553,-500.0,0.00023199,2]
[349324057,1737124238564,-500.0,0.00023199,2]
[349324058,1737124238574,-500.0,0.00023199,2]
[349324059,1737124238583,-500.0,0.00023199,2]
[349324060,1737124238594,-500.0,0.00023199,2]
[349324061,1737124238603,-500.0,0.00023199,2]
[349324062,1737124238612,-500.0,0.00023199,2]
[349324063,1737124238621,-500.0,0.00023199,2]
[349324064,1737124238631,-500.0,0.00023199,2]
[349324065,1737124238640,-500.0,0.00023199,2]
[349324066,1737124238650,-500.0,0.00023199,2]
[349324067,1737124238662,-500.0,0.00023199,2]
[349324068,1737124238671,-500.0,0.00023199,2]
[349324069,1737124238681,-500.0,0.00023199,2]
[349324070,1737124238691,-500.0,0.00023199,2]
[349324071,1737124238700,-500.0,0.00023199,2]
[349324072,1737124238710,-500.0,0.00023199,2]
[349324073,1737124238721,-1715.02,0.00023199,2]
[349324074,1737124238732,-500.0,0.00023199,2]
[349324075,1737124238743,-500.0,0.00023199,2]
[349324076,1737124238752,-500.0,0.00023199,2]
[349324077,1737124238763,-500.0,0.00023199,2]
[349324078,1737124238773,-500.0,0.00023199,2]
[349324079,1737124238784,-500.0,0.00023199,2]
[349324080,1737124238794,-1715.02,0.00023199,2]
[349324081,1737124238807,-500.0,0.00023199,2]
[349324082,1737124238817,-500.0,0.00023199,2]
[349324083,1737124238827,-500.0,0.00023199,2]
[349324084,1737124238837,-500.0,0.00023199,2]
[349324085,1737124238847,-500.0,0.00023199,2]
[349324086,1737124238856,-500.0,0.00023199,2]
[349324087,1737124238865,-1715.02,0.00023199,2]
[349324088,1737124238875,-500.0,0.00023199,2]
[349324089,1737124238884,-500.0,0.00023199,2]
[349324090,1737124238893,-500.0,0.00023199,2]
[349324091,1737124238902,-500.0,0.00023199,2]
[349324092,1737124238912,-500.0,0.00023199,2]
[349324093,1737124238921,-1715.02,0.00023199,2]
[349324094,1737124238930,-500.0,0.00023199,2]
[349324095,1737124238939,-500.0,0.00023199,2]
[349324096,1737124238949,-500.0,0.00023199,2]
[349324097,1737124238966,-500.0,0.00023199,2]
[349324098,1737124238975,-500.0,0.00023199,2]
[349324099,1737124238984,-1715.02,0.00023199,2]
[349324100,1737124238993,-500.0,0.00023199,2]
[349324101,1737124239003,-500.0,0.00023199,2]
[349324102,1737124239012,-500.0,0.00023199,2]
[349324103,1737124239021,-500.0,0.00023199,2]
[349324104,1737124239030,-503.53542871,0.00023199,2]
[349324105,1737124239040,-500.0,0.00023199,2]
[349324106,1737124239051,-500.0,0.00023199,2]
[349324107,1737124239060,-1715.02,0.00023199,2]
[349324108,1737124239070,-500.0,0.00023199,2]
[349324109,1737124239079,-500.0,0.00023199,2]
[349324110,1737124239088,-500.0,0.00023199,2]
[349324111,1737124239099,-500.0,0.00023199,2]
[349324112,1737124239108,-500.0,0.00023199,2]
[349324113,1737124239118,-500.0,0.00023199,2]
[349324114,1737124239135,-1715.02,0.00023199,2]
[349324115,1737124239154,-500.0,0.00023199,2]
[349324116,1737124239167,-500.0,0.00023199,2]
[349324117,1737124239177,-500.0,0.00023199,2]
[349324118,1737124239187,-500.0,0.00023199,2]
[349324119,1737124239197,-500.0,0.00023199,2]
[349324120,1737124239206,-1715.02,0.00023199,2]
[349324121,1737124239216,-500.0,0.00023199,2]
[349324122,1737124239226,-641.9,0.00023199,2]
[349324123,1737124239236,-500.0,0.00023199,2]
[349324124,1737124239246,-500.0,0.00023199,2]
[349324125,1737124239255,-500.0,0.00023199,2]
[349324126,1737124239265,-193.85,0.00023199,2]
[349324127,1737124239275,-500.0,0.00023199,2]
[349324128,1737124239285,-1715.02,0.00023199,2]
[349324129,1737124239294,-500.0,0.00023199,2]
[349324130,1737124239306,-500.0,0.00023199,2]
[349324131,1737124239316,-500.0,0.00023199,2]
[349324132,1737124239326,-500.0,0.00023199,2]
[349324133,1737124239337,-500.0,0.00023199,2]
[349324134,1737124239348,-1715.02,0.00023199,2]
[349324135,1737124239358,-500.0,0.00023199,2]
[349324136,1737124239367,-500.0,0.00023199,2]
[349324137,1737124239377,-500.0,0.00023199,2]
[349324138,1737124239387,-500.0,0.00023199,2]
[349324139,1737124239397,-500.0,0.00023199,2]
[349324140,1737124239407,-500.0,0.00023199,2]
[349324141,1737124239416,-1715.02,0.00023199,2]
[349324142,1737124239426,-500.0,0.00023199,2]
[349324143,1737124239436,-500.0,0.00023199,2]
[349324144,1737124239448,-500.0,0.00023199,2]
[349324145,1737124239458,-500.0,0.00023199,2]
[349324146,1737124239470,-500.0,0.00023199,2]
[349324147,1737124239481,-500.0,0.00023199,2]
[349324148,1737124239491,-1715.02,0.00023199,2]
[349324149,1737124239500,-366.67964517,0.00023199,2]
[349324151,1737124239512,-500.0,0.00023199,2]
[349324153,1737124239524,-500.0,0.00023199,2]
[349324154,1737124239534,-500.0,0.00023199,2]
[349324155,1737124239544,-500.0,0.00023199,2]
[349324156,1737124239558,-1715.02,0.00023199,2]
[349324157,1737124239568,-500.0,0.00023199,2]
[349324158,1737124239578,-500.0,0.00023199,2]
[349324159,1737124239588,-500.0,0.00023199,2]
[349324160,1737124239599,-1715.02,0.00023199,2]
[349324161,1737124239609,-153.38865628,0.00023199,2]
[349324162,1737124239619,-500.0,0.00023199,2]
[349324163,1737124239629,-500.0,0.00023199,2]
[349324164,1737124239638,-500.0,0.00023199,2]
[349324165,1737124239648,-1715.02,0.00023199,2]
[349324166,1737124239658,-500.0,0.00023199,2]
[349324167,1737124239669,-487.67982444,0.00023199,2]
[349324168,1737124239678,-500.0,0.00023199,2]
[349324169,1737124239688,-500.0,0.00023199,2]
[349324170,1737124239697,-1715.02,0.00023199,2]
[349324171,1737124239707,-500.0,0.00023199,2]
[349324172,1737124239717,-500.0,0.00023199,2]
[349324173,1737124239726,-1715.02,0.00023199,2]
[349324174,1737124239736,-271.83291851,0.00023199,2]
[349324175,1737124239747,-500.0,0.00023199,2]
[349324176,1737124239758,-1715.02,0.00023199,2]
[349324177,1737124239767,-500.0,0.00023199,2]
[349324178,1737124239779,-500.0,0.00023199,2]
[349324179,1737124239788,-1715.02,0.00023199,2]
[349324180,1737124239800,-252.6265,0.00023199,2]
[349324181,1737124239809,-500.0,0.00023199,2]
[349324182,1737124239819,-1715.02,0.00023199,2]
[349324183,1737124239828,-500.0,0.00023199,2]
[349324184,1737124239838,-1715.02,0.00023199,2]
[349324185,1737124239848,-500.0,0.00023199,2]
[349324186,1737124239858,-1715.02,0.00023199,2]
[349324187,1737124239868,-500.0,0.00023199,2]
[349324188,1737124239878,-1715.02,0.00023199,2]
[349324189,1737124239887,-502.55654369,0.00023199,2]
[349324190,1737124239897,-500.0,0.00023199,2]
[349324191,1737124239906,-1715.23749652,0.00023199,2]
[349324192,1737124239916,-500.0,0.00023199,2]
[349324193,1737124239926,-500.0,0.00023199,2]
[349324194,1737124239936,-500.0,0.00023199,2]
[349324195,1737124239946,-500.0,0.00023199,2]
[349324196,1737124239955,-500.0,0.00023199,2]
[349324197,1737124239966,-500.0,0.00023199,2]
[349324198,1737124239975,-500.0,0.00023199,2]
[349324199,1737124239985,-500.0,0.00023199,2]
[349324200,1737124239995,-500.0,0.00023199,2]
[349324201,1737124240004,-500.0,0.00023199,2]
[349324202,1737124240014,-500.0,0.00023199,2]
[349324203,1737124240024,-500.0,0.00023199,2]
[349324204,1737124240034,-500.0,0.00023199,2]
[349324205,1737124240044,-500.0,0.00023199,2]
[349324206,1737124240056,-500.0,0.00023199,2]
[349324207,1737124240066,-500.0,0.00023199,2]
[349324208,1737124240076,-500.0,0.00023199,2]
[349324209,1737124240085,-500.0,0.00023199,2]
[349324210,1737124240095,-500.0,0.00023199,2]
[349324211,1737124240105,-500.0,0.00023199,2]
[349324212,1737124240114,-500.0,0.00023199,2]
[349324213,1737124240123,-314.39200116,0.00023199,2]
[349324214,1737124240133,-500.0,0.00023199,2]
[349324215,1737124240143,-500.0,0.00023199,2]
[349324216,1737124240152,-500.0,0.00023199,2]
[349324217,1737124240162,-500.0,0.00023199,2]
[349324218,1737124240172,-500.0,0.00023199,2]
[349324219,1737124240182,-500.0,0.00023199,2]
[349324220,1737124240193,-500.0,0.00023199,2]
[349324221,1737124240202,-500.0,0.00023199,2]
[349324222,1737124240212,-500.0,0.00023199,2]
[349324223,1737124240222,-500.0,0.00023199,2]
[349324224,1737124240231,-500.0,0.00023199,2]
[349324225,1737124240242,-500.0,0.00023199,2]
[349324226,1737124240251,-500.0,0.00023199,2]
[349324227,1737124240263,-500.0,0.00023199,2]
[349324228,1737124240272,-500.0,0.00023199,2]
[349324229,1737124240282,-500.0,0.00023199,2]
[349324230,1737124240291,-500.0,0.00023199,2]
[349324231,1737124240303,-500.0,0.00023199,2]
[349324232,1737124240312,-618.1967881,0.00023199,2]
[349324233,1737124240322,-500.0,0.00023199,2]
[349324235,1737124240524,-500.0,0.00023199,2]
[349324236,1737124240536,-500.0,0.00023199,2]
[349324237,1737124240549,-500.0,0.00023199,2]
[349324238,1737124240558,-500.0,0.00023199,2]
[349324239,1737124240567,-500.0,0.00023199,2]
[349324240,1737124240577,-500.0,0.00023199,2]
[349324241,1737124240587,-500.0,0.00023199,2]
[349324242,1737124240596,-500.0,0.00023199,2]
[349324243,1737124240606,-500.0,0.00023199,2]
[349324244,1737124240615,-500.0,0.00023199,2]
[349324245,1737124240624,-500.0,0.00023199,2]
[349324246,1737124240634,-500.0,0.00023199,2]
[349324247,1737124240646,-500.0,0.00023199,2]
[349324248,1737124240657,-2030.41,0.00023199,2]
[349324249,1737124240667,-500.0,0.00023199,2]
[349324250,1737124240677,-500.0,0.00023199,2]
[349324251,1737124240687,-500.0,0.00023199,2]
[349324252,1737124240697,-500.0,0.00023199,2]
[349324253,1737124240707,-500.0,0.00023199,2]
[349324254,1737124240717,-500.0,0.00023199,2]
[349324255,1737124240726,-500.0,0.00023199,2]
[349324256,1737124240736,-2030.41,0.00023199,2]
[349324257,1737124240747,-500.0,0.00023199,2]
[349324258,1737124240756,-500.0,0.00023199,2]
[349324259,1737124240765,-500.0,0.00023199,2]
[349324260,1737124240775,-500.0,0.00023199,2]
[349324261,1737124240784,-500.0,0.00023199,2]
[349324262,1737124240793,-500.0,0.00023199,2]
[349324263,1737124240807,-500.0,0.00023199,2]
[349324264,1737124240815,-50000.0,0.000232,2]
[349324265,1737124240825,-50000.0,0.000232,2]
[349324266,1737124240834,-50000.0,0.000232,2]
[349324267,1737124240843,-50000.0,0.000232,2]
[349324268,1737124240852,-50000.0,0.000232,2]
[349324269,1737124240861,-50000.0,0.000232,3]
[349324270,1737124240870,-50000.0,0.000232,3]
[349324271,1737124240880,-50000.0,0.000232,3]
[349324272,1737124240889,-50000.0,0.000232,3]
[349324273,1737124240898,-50000.0,0.000232,3]
[349324274,1737124240908,-8621693.85263793,0.000232,16]
[349324275,1737124240918,-21627.1829641,0.000232,2]
[349324276,1737124240927,-8335350.15366834,0.000232,2]
[349324277,1737124241338,-414.72,0.000232,2]
[349324278,1737124241422,-2030.41,0.00023199,2]
[349324279,1737124241433,-500.0,0.00023199,2]
[349324280,1737124241443,-500.0,0.00023199,2]
[349324281,1737124241453,-500.0,0.00023199,2]
[349324282,1737124241463,-500.0,0.00023199,2]
[349324283,1737124241477,-500.0,0.00023199,2]
[349324284,1737124241488,-500.0,0.00023199,2]
[349324285,1737124241498,-8469.590002,0.000232,2]
[349324286,1737124241831,-2030.41,0.00023199,2]
[349324287,1737124241840,-500.0,0.00023199,2]
[349324288,1737124241849,-500.0,0.00023199,2]
[349324289,1737124241858,-500.0,0.00023199,2]
[349324290,1737124241868,-500.0,0.00023199,2]
[349324291,1737124241877,-500.0,0.00023199,2]
[349324292,1737124241887,-163.41609516,0.00023199,2]
[349324293,1737124241896,-2030.41,0.00023199,2]
[349324294,1737124241906,-500.0,0.00023199,2]
[349324295,1737124241915,-500.0,0.00023199,2]
[349324296,1737124241924,-500.0,0.00023199,2]
[349324297,1737124241934,-500.0,0.00023199,2]
[349324298,1737124241944,-500.0,0.00023199,2]
[349324299,1737124241955,-500.0,0.00023199,2]
[349324300,1737124241964,-500.0,0.00023199,2]
[349324301,1737124241974,-2030.41,0.00023199,2]
[349324302,1737124241984,-500.0,0.00023199,2]
[349324303,1737124241993,-529.130001,0.00023199,2]
[349324304,1737124242003,-500.0,0.00023199,2]
[349324305,1737124242013,-464.31182568,0.00023199,2]
[349324306,1737124242023,-500.0,0.00023199,2]
[349324307,1737124242033,-500.0,0.00023199,2]
[349324308,1737124242042,-2030.41,0.00023199,2]
[349324309,1737124242058,-500.0,0.00023199,2]
[349324310,1737124242067,-500.0,0.00023199,2]
[349324311,1737124242077,-500.0,0.00023199,2]
[349324312,1737124242088,-2030.41,0.00023199,2]
[349324313,1737124242099,-500.0,0.00023199,2]
[349324314,1737124242108,-500.0,0.00023199,2]
[349324315,1737124242118,-500.0,0.00023199,2]
[349324316,1737124242128,-2030.41,0.00023199,2]
[349324317,1737124242138,-500.0,0.00023199,2]
[349324318,1737124242147,-500.0,0.00023199,2]
[349324319,1737124242157,-500.0,0.00023199,2]
[349324320,1737124242167,-2030.41,0.00023199,2]
[349324321,1737124242177,-500.0,0.00023199,2]
[349324322,1737124242187,-500.0,0.00023199,2]
[349324323,1737124242196,-18577.27837108,0.000232,2]